Workbook

Sheet 封面
A1: 2024年部门预算公开表
D4: 单位编码： | E4: 507001
D5: 单位名称： | E5: 岳阳县残疾人联合会

Sheet 目录
B1: 部门预算公开表
B3: 一、部门预算报表
B4: 1 | C4: 收支总表
B5: 2 | C5: 收入总表
B6: 3 | C6: 支出总表
B7: 4 | C7: 支出预算分类汇总表（按政府预算经济分类）
B8: 5 | C8: 支出预算分类汇总表（按部门预算经济分类）
B9: 6 | C9: 财政拨款收支总表
B10: 7 | C10: 一般公共预算支出表
B11: 8 | C11: 一般公共预算基本支出表
B12: 9 | C12: 一般公共预算基本支出表--人员经费(工资福利支出)(按政府预算经济分类)
B13: 10 | C13: 一般公共预算基本支出表--人员经费(工资福利支出)(按部门预算经济分类)
B14: 11 | C14: 一般公共预算基本支出表--人员经费(对个人和家庭的补助)(按政府预算经济分类)
B15: 12 | C15: 一般公共预算基本支出表--人员经费(对个人和家庭的补助)（按部门预算经济分类）
B16: 13 | C16: 一般公共预算基本支出表--公用经费(商品和服务支出)（按政府预算经济分类）
B17: 14 | C17: 一般公共预算基本支出表--公用经费(商品和服务支出)(按部门预算经济分类)
B18: 15 | C18: 一般公共预算“三公”经费支出表
B19: 16 | C19: 政府性基金预算支出表
B20: 17 | C20: 政府性基金预算支出分类汇总表（按政府预算经济分类）
B21: 18 | C21: 政府性基金预算支出分类汇总表（按部门预算经济分类）
B22: 19 | C22: 国有资本经营预算支出表
B23: 20 | C23: 财政专户管理资金预算支出表
B24: 21 | C24: 专项资金预算汇总表
B25: 22 | C25: 项目支出绩效目标表
B26: 23 | C26: 整体支出绩效目标表

Sheet 1收支总表
H1: 部门公开表01
A2: 收支总表
A3: 单位：507001_岳阳县残疾人联合会 | G3: 金额单位：万元
A4: 收入 | C4: 支出
A5: 项目 | B5: 预算数 | C5: 项目（按功能分类） | D5: 预算数 | E5: 项目（按部门预算经济分类） | F5: 预算数 | G5: 项目（按政府预算经济分类） | H5: 预算数
A6: 一、一般公共预算拨款收入 | B6: 417.58 | C6: （一）一般公共服务支出 | E6: 一、基本支出 | F6: =SUM(F7:F9) -> 381.54 | G6: 一、机关工资福利支出 | H6: 282.34
A7: 经费拨款 | B7: 417.58 | C7: （二）外交支出 | E7: 工资福利支出 | F7: 282.34 | G7: 二、机关商品和服务支出 | H7: 216.00
A8: 纳入一般公共预算管理的非税收入拨款 | C8: （三）国防支出 | E8: 商品和服务支出 | F8: 93.30 | G8: 三、机关资本性支出 | H8: 10.00
A9: 行政事业性收费收入 | C9: （四）公共安全支出 | E9: 对个人和家庭的补助 | F9: 5.90 | G9: 四、机关资本性支出（基本建设）
A10: 专项收入 | C10: （五）教育支出 | E10: 二、项目支出 | F10: =SUM(F11:F20) -> 669.90 | G10: 五、对事业单位经常性补助
A11: 国有资本经营收入 | C11: （六）科学技术支出 | E11: 按项目管理的工资福利支出 | G11: 六、对事业单位资本性补助
A12: 国有资源（资产）有偿使用收入 | C12: （七）文化旅游体育与传媒支出 | E12: 按项目管理的商品和服务支出 | F12: 122.70 | G12: 七、对企业补助
A13: 罚没收入 | C13: （八）社会保障和就业支出 | D13: 732.97 | E13: 按项目管理的对个人和家庭的补助 | F13: 537.20 | G13: 八、对企业资本性支出
A14: 捐赠收入 | C14: （九）社会保险基金支出 | E14: 债务利息及费用支出 | G14: 九、对个人和家庭的补助 | H14: 543.10
A15: 政府住房基金收入 | C15: （十）卫生健康支出 | D15: 11.24 | E15: 资本性支出（基本建设） | G15: 十、对社会保障基金补助
A16: 其他纳入一般公共预算管理的非税收入 | C16: （十一）节能环保支出 | E16: 资本性支出 | F16: 10.00 | G16: 十一、债务利息及费用支出
A17: 一般债券 | C17: （十二）城乡社区支出 | E17: 对企业补助（基本建设） | G17: 十二、债务还本支出
A18: 外国政府和国际组织贷款 | C18: （十三）农林水支出 | E18: 对企业补助 | G18: 十三、转移性支出
A19: 外国政府和国际组织捐赠 | C19: （十四）交通运输支出 | E19: 对社会保障基金补助 | G19: 十四、其他支出
A20: 二、政府性基金预算拨款收入 | C20: （十五）资源勘探工业信息等支出 | E20: 其他支出
A21: 三、国有资本经营预算拨款收入 | C21: （十六）商业服务业等支出 | E21: 三、事业单位经营服务支出
A22: 四、社会保障基金预算资金 | C22: （十七）金融支出
A23: 五、财政专户管理资金收入 | C23: （十八）援助其他地区支出
A24: 六、上级财政补助收入 | B24: 500.00 | C24: （十九）自然资源海洋气象等支出
A25: 一般公共预算补助 | B25: 280.00 | C25: （二十）住房保障支出 | D25: 14.20
A26: 政府性基金补助 | B26: 220.00 | C26: （二十一）粮油物资储备支出
A27: 国有资本经营预算补助 | C27: （二十二）国有资本经营预算支出
A28: 七、事业收入 | C28: （二十三）灾害防治及应急管理支出
A29: 八、事业单位经营收入 | C29: （二十四）预备费
A30: 九、上级单位补助收入 | C30: （二十五）其他支出 | D30: 293.03
A31: 十、附属单位上缴收入 | C31: （二十六）转移性支出
A32: 十一、其他收入 | C32: （二十七）债务还本支出
C33: （二十八）债务付息支出
C34: （二十九）债务发行费用支出
C35: （三十）抗疫特别国债安排的支出
A36: 本 年 收 入 合 计 | B36: =B6+B20+B21+B22+B23+B24 -> 917.58 | C36: 本 年 支 出 合 计 | D36: =SUM(D6:D35) -> 1,051.44 | E36: 本 年 支 出 合 计 | F36: =F6+F10+F21 -> 1,051.44 | G36: 本 年 支 出 合 计 | H36: =SUM(H6:H19) -> 1,051.44
A37: 上年结转结余 | B37: 133.86 | C37: 年终结转结余 | E37: 年终结转结余 | G37: 年终结转结余
A39: 收 入 总 计 | B39: =B36+B37 -> 1,051.44 | C39: 支 出 总 计 | D39: =D36+D37 -> 1,051.44 | E39: 支 出 总 计 | F39: =F36+F37 -> 1,051.44 | G39: 支 出 总 计 | H39: =H36+H37 -> 1,051.44

Sheet 2收入总表
X1: 部门公开表02
A2: 收入总表
A3: 单位：507001_岳阳县残疾人联合会 | X3: 金额单位：万元
A4: 部门（单位）代码 | B4: 部门（单位）名称 | C4: 合计 | D4: 本年收入 | S4: 上年结转结余
D5: 小计 | E5: 一般公共预算 | F5: 政府性基金预算 | G5: 国有资本经营预算 | H5: 社会保险基金预算资金 | I5: 财政专户管理资金 | J5: 上级财政补助收入 | N5: 事业收入 | O5: 事业单位经营收入 | P5: 上级单位补助收入 | Q5: 附属单位上缴收入 | R5: 其他收入 | S5: 小计 | T5: 一般公共预算 | U5: 政府性基金预算 | V5: 国有资本经营预算 | W5: 社会保险基金预算资金 | X5: 财政专户管理资金 | Y5: 单位资金
J6: 一般公共预算补助 | K6: 政府性基金补助 | L6: 国有资本经营预算补助 | M6: 社会保险基金预算资金
B7: 合计 | C7: =D7+S7 -> 1,051.44 | D7: =SUM(E7:R7) -> 917.58 | E7: 417.58 | J7: 280.00 | K7: 220.00 | S7: =SUM(T7:Y7) -> 133.86 | T7: 60.83 | U7: 73.03
A8: 507 | B8: 岳阳县残疾人联合会 | C8: =D8+S8 -> 1,051.44 | D8: =SUM(E8:R8) -> 917.58 | E8: 417.58 | J8: 280.00 | K8: 220.00 | S8: =SUM(T8:Y8) -> 133.86 | T8: 60.83 | U8: 73.03
A9: 507001 | B9: 岳阳县残疾人联合会 | C9: =D9+S9 -> 1,051.44 | D9: =SUM(E9:R9) -> 917.58 | E9: 417.58 | J9: 280.00 | K9: 220.00 | S9: =SUM(T9:Y9) -> 133.86 | T9: 60.83 | U9: 73.03

Sheet 3支出总表
K1: 部门公开表03
A2: 支出总表
A3: 单位：507001_岳阳县残疾人联合会 | K3: 金额单位：万元
A4: 功能科目 | D4: 科目编码 | E4: 科目名称 | F4: 合计 | G4: 基本支出 | H4: 项目支出 | I4: 事业单位经营支出 | J4: 上缴上级支出 | K4: 对附属单位补助支出
A5: 类 | B5: 款 | C5: 项
D6: 合计 | F6: =F7 -> 1,051.44 | G6: =G7 -> 381.54 | H6: =H7 -> 669.90
D7: 507 | E7: 507 | F7: =F8 -> 1,051.44 | G7: =G8 -> 381.54 | H7: =H8 -> 669.90
D8: 507001 | E8: 岳阳县残疾人联合会 | F8: =F9+F20+F24+F27 -> 1,051.44 | G8: =G9+G20+G24+G27 -> 381.54 | H8: =H9+H20+H24+H27 -> 669.90
A9: 208 | D9: 208 | E9: 社会保障和就业支出 | F9: =F10+F13+F18 -> 732.97 | G9: =G10+G13+G18 -> 356.10 | H9: =H10+H13+H18 -> 376.87
A10: 208 | B10: 05 | D10: 20805 | E10: 行政事业单位养老支出 | F10: 21.40 | G10: 21.40
A11: 208 | B11: 05 | C11: 05 | D11: 2080505 | E11: 机关事业单位基本养老保险缴费支出 | F11: 18.93 | G11: 18.93
A12: 208 | B12: 05 | C12: 06 | D12: 2080506 | E12: 机关事业单位职业年金缴费支出 | F12: 2.48 | G12: 2.48
A13: 208 | B13: 11 | D13: 20811 | E13: 残疾人事业 | F13: =SUM(F14:F17) -> 710.39 | G13: =SUM(G14:G17) -> 333.52 | H13: =SUM(H14:H17) -> 376.87
A14: 208 | B14: 11 | C14: 01 | D14: 2081101 | E14: 行政运行 | F14: =G14+H14 -> 169.56 | G14: 166.86 | H14: 2.70
A15: 208 | B15: 11 | C15: 04 | D15: 2081104 | E15: 残疾人康复 | F15: =G15+H15 -> 274.17 | H15: 274.17
A16: 208 | B16: 11 | C16: 05 | D16: 2081105 | E16: 残疾人就业 | F16: =G16+H16 -> 151.66 | G16: 51.66 | H16: 100.00
A17: 208 | B17: 11 | C17: 99 | D17: 2081199 | E17: 其他残疾人事业支出 | F17: =G17+H17 -> 115.00 | G17: 115.00
A18: 208 | B18: 99 | D18: 20899 | E18: 其他社会保障和就业支出 | F18: 1.18 | G18: 1.18
A19: 208 | B19: 99 | C19: 99 | D19: 2089999 | E19: 其他社会保障和就业支出 | F19: 1.18 | G19: 1.18
A20: 210 | D20: 210 | E20: 卫生健康支出 | F20: 11.24 | G20: 11.24
A21: 210 | B21: 11 | D21: 21011 | E21: 行政事业单位医疗 | F21: 11.24 | G21: 11.24
A22: 210 | B22: 11 | C22: 01 | D22: 2101101 | E22: 行政单位医疗 | F22: 10.06 | G22: 10.06
A23: 210 | B23: 11 | C23: 03 | D23: 2101103 | E23: 公务员医疗补助 | F23: 1.18 | G23: 1.18
A24: 221 | D24: 221 | E24: 住房保障支出 | F24: 14.20 | G24: 14.20
A25: 221 | B25: 02 | D25: 22102 | E25: 住房改革支出 | F25: 14.20 | G25: 14.20
A26: 221 | B26: 02 | C26: 01 | D26: 2210201 | E26: 住房公积金 | F26: 14.20 | G26: 14.20
A27: 229 | D27: 229 | E27: 其他支出 | F27: 293.03 | H27: 293.03
A28: 229 | B28: 60 | D28: 22960 | E28: 彩票公益金安排的支出 | F28: 293.03 | H28: 293.03
A29: 229 | B29: 60 | C29: 06 | D29: 2296006 | E29: 用于残疾人事业的彩票公益金支出 | F29: =SUM(G29:K29) -> 293.03 | H29: 293.03

Sheet 4支出分类(政府预算)
S1: 部门公开表04
A2: 支出预算分类汇总表（按政府预算经济分类）
A3: 单位：507001_岳阳县残疾人联合会 | S3: 金额单位：万元
A4: 功能科目 | D4: 单位代码 | E4: 单位名称（功能科目） | F4: 总 计 | G4: 机关工资福利支出 | H4: 机关商品和服务支出 | I4: 机关资本性支出 | J4: 机关资本性支出(基本建设) | K4: 对事业单位经常性补助 | L4: 对事业单位资本性补助 | M4: 对企业补助 | N4: 对企业资本性支出 | O4: 对个人和家庭的补助 | P4: 对社会保障基金补助 | Q4: 债务利息及费用支出 | R4: 债务还本支出 | S4: 转移性支出 | T4: 其他支出
A5: 类 | B5: 款 | C5: 项
E6: 合计 | F6: =F7 -> 1,051.44 | G6: =G7 -> 282.34 | H6: 216.00 | I6: 10.00 | O6: 543.10
D7: 507 | E7: 岳阳县残疾人联合会 | F7: =F8 -> 1,051.44 | G7: =G8 -> 282.34 | H7: 216.00 | I7: 10.00 | O7: 543.10
D8: 507001 | E8: 岳阳县残疾人联合会 | F8: =SUM(G8:O8) -> 1,051.44 | G8: =SUM(G9:G19) -> 282.34 | H8: =SUM(H9:H19) -> 216.00 | I8: =SUM(I9:I19) -> 10.00 | O8: =SUM(O9:O19) -> 543.10
A9: 208 | B9: 05 | C9: 05 | D9: 507001 | E9: 机关事业单位基本养老保险缴费支出 | F9: 18.93 | G9: 18.93
A10: 208 | B10: 05 | C10: 06 | D10: 507001 | E10: 机关事业单位职业年金缴费支出 | F10: 2.48 | G10: 2.48
A11: 208 | B11: 11 | C11: 01 | D11: 507001 | E11: 行政运行 | F11: 169.56 | G11: 144.66 | H11: 24.90
A12: 208 | B12: 11 | C12: 04 | D12: 507001 | E12: 残疾人康复 | F12: 274.17 | H12: 30.00 | O12: 244.17
A13: 208 | B13: 11 | C13: 05 | D13: 507001 | E13: 残疾人就业 | F13: 151.66 | G13: 51.66 | H13: 90.00 | I13: 10.00
A14: 208 | B14: 11 | C14: 99 | D14: 507001 | E14: 其他残疾人事业支出 | F14: =SUM(G14:O14) -> 115.00 | G14: 38.00 | H14: 71.10 | O14: 5.90
A15: 208 | B15: 99 | C15: 99 | D15: 507001 | E15: 其他社会保障和就业支出 | F15: 1.18 | G15: 1.18
A16: 210 | B16: 11 | C16: 01 | D16: 507001 | E16: 行政单位医疗 | F16: 10.06 | G16: 10.06
A17: 210 | B17: 11 | C17: 03 | D17: 507001 | E17: 公务员医疗补助 | F17: 1.18 | G17: 1.18
A18: 221 | B18: 02 | C18: 01 | D18: 507001 | E18: 住房公积金 | F18: 14.20 | G18: 14.20
A19: 229 | B19: 60 | C19: 06 | D19: 507001 | E19: 用于残疾人事业的彩票公益金支出 | F19: 293.03 | O19: 293.03

Sheet 5支出分类（部门预算）
T1: 部门公开表05
A2: 支出预算分类汇总表（按部门预算经济分类）
A3: 单位：507001_岳阳县残疾人联合会 | T3: 金额单位：万元
A4: 功能科目 | D4: 单位代码 | E4: 单位名称（功能科目） | F4: 总 计 | G4: 基本支出 | K4: 项目支出
A5: 类 | B5: 款 | C5: 项 | G5: 合计 | H5: 工资福利支出 | I5: 一般商品和服务支出 | J5: 对个人和家庭的补助 | K5: 合计 | L5: 按项目管理的工资福利支出 | M5: 按项目管理的商品和服务支出 | N5: 按项目管理的对个人和家庭的补助 | O5: 债务利息及费用支出 | P5: 资本性支出（基本建设） | Q5: 资本性支出 | R5: 对企业补助（基本建设） | S5: 对企业补助 | T5: 对社会保障基金补助 | U5: 其他支出
E6: 合计 | F6: =F7 -> 1,051.44 | G6: =G7 -> 381.54 | H6: 282.34 | I6: 93.30 | J6: 5.90 | K6: 669.90 | M6: 122.70 | N6: 537.20 | Q6: 10.00
D7: 507 | E7: 岳阳县残疾人联合会 | F7: =F8 -> 1,051.44 | G7: =G8 -> 381.54 | H7: 282.34 | I7: 93.30 | J7: 5.90 | K7: 669.90 | M7: 122.70 | N7: 537.20 | Q7: 10.00
D8: 507001 | E8: 岳阳县残疾人联合会 | F8: =SUM(F9:F19) -> 1,051.44 | G8: =SUM(G9:G19) -> 381.54 | H8: =SUM(H9:H19) -> 282.34 | I8: =SUM(I9:I19) -> 93.30 | J8: 5.90 | K8: 669.90 | M8: 122.70 | N8: 537.20 | Q8: 10.00
A9: 208 | B9: 05 | C9: 05 | D9: 507001 | E9: 机关事业单位基本养老保险缴费支出 | F9: =G9+K9 -> 18.93 | G9: =SUM(H9:J9) -> 18.93 | H9: 18.93 | K9: =SUM(L9:U9) -> 0.00
A10: 208 | B10: 05 | C10: 06 | D10: 507001 | E10: 机关事业单位职业年金缴费支出 | F10: =G10+K10 -> 2.48 | G10: =SUM(H10:J10) -> 2.48 | H10: 2.48 | K10: =SUM(L10:U10) -> 0.00
A11: 208 | B11: 11 | C11: 01 | D11: 507001 | E11: 行政运行 | F11: 169.56 | G11: 166.86 | H11: 144.66 | I11: 22.20 | K11: 2.70 | M11: 2.70
A12: 208 | B12: 11 | C12: 04 | D12: 507001 | E12: 残疾人康复 | F12: 274.17 | G12: 0.00 | K12: 274.17 | M12: 30.00 | N12: 244.17
A13: 208 | B13: 11 | C13: 05 | D13: 507001 | E13: 残疾人就业 | F13: 151.66 | G13: 51.66 | H13: 51.66 | K13: 100.00 | M13: 90.00 | Q13: 10.00
A14: 208 | B14: 11 | C14: 99 | D14: 507001 | E14: 其他残疾人事业支出 | F14: 115.00 | G14: 115.00 | H14: 38.00 | I14: 71.10 | J14: 5.90 | K14: 0.00
A15: 208 | B15: 99 | C15: 99 | D15: 507001 | E15: 其他社会保障和就业支出 | F15: 1.18 | G15: 1.18 | H15: 1.18 | K15: 0.00
A16: 210 | B16: 11 | C16: 01 | D16: 507001 | E16: 行政单位医疗 | F16: 10.06 | G16: 10.06 | H16: 10.06 | K16: 0.00
A17: 210 | B17: 11 | C17: 03 | D17: 507001 | E17: 公务员医疗补助 | F17: 1.18 | G17: 1.18 | H17: 1.18 | K17: 0.00
A18: 221 | B18: 02 | C18: 01 | D18: 507001 | E18: 住房公积金 | F18: 14.20 | G18: 14.20 | H18: 14.20 | K18: 0.00
A19: 229 | B19: 60 | C19: 06 | D19: 507001 | E19: 用于残疾人事业的彩票公益金支出 | F19: 293.03 | G19: 0.00 | K19: 293.03 | N19: 293.03

Sheet 6财政拨款收支总表
D1: 部门公开表06
A2: 财政拨款收支总表
A3: 单位：507001_岳阳县残疾人联合会 | D3: 金额单位：万元
A4: 收入 | C4: 支出
A5: 项目 | B5: 预算数 | C5: 项目 | D5: 预算数
A6: 一、本年收入 | B6: =B7+B10+B11+B12 -> 917.58 | C6: 一、本年支出 | D6: =SUM(D7:D36) -> 1,051.44
A7: （一）一般公共预算拨款 | B7: =SUM(B8:B9) -> 697.58 | C7: （一）一般公共服务支出
A8: 经费拨款 | B8: 697.58 | C8: （二）外交支出
A9: 纳入一般公共预算管理的非税收入拨款 | C9: （三）国防支出
A10: （二）政府性基金预算拨款 | B10: 220.00 | C10: （四）公共安全支出
A11: （三）国有资本经营预算拨款 | C11: （五）教育支出
A12: （四）社会保险基金预算资金 | C12: （六）科学技术支出
A13: 二、上年结转 | B13: =SUM(B14:B17) -> 133.86 | C13: （七）文化旅游体育与传媒支出
A14: （一）一般公共预算拨款 | B14: 60.83 | C14: （八）社会保障和就业支出 | D14: 732.97
A15: （二）政府性基金预算拨款 | B15: 73.03 | C15: （九）社会保险基金支出
A16: （三）国有资本经营预算拨款 | C16: （十）卫生健康支出 | D16: 11.24
A17: （四）社会保险基金预算资金 | C17: （十一）节能环保支出
C18: （十二）城乡社区支出
C19: （十三）农林水支出
C20: （十四）交通运输支出
C21: （十五）资源勘探工业信息等支出
C22: （十六）商业服务业等支出
C23: （十七）金融支出
C24: （十八）援助其他地区支出
C25: （十九）自然资源海洋气象等支出
C26: （二十）住房保障支出 | D26: 14.20
C27: （二十一）粮油物资储备支出
C28: （二十二）国有资本经营预算支出
C29: （二十三）灾害防治及应急管理支出
C30: （二十四）预备费
C31: （二十五）其他支出 | D31: 293.03
C32: （二十六）转移性支出
C33: （二十七）债务还本支出
C34: （二十八）债务付息支出
C35: （二十九）债务发行费用支出
C36: （三十）抗疫特别国债安排的支出
C38: 二、年终结转结余
A40: 收 入 总 计 | B40: =B6+B13 -> 1,051.44 | C40: 支 出 总 计 | D40: =SUM(D7:D36) -> 1,051.44

Sheet 7一般公共预算支出表
K1: 部门公开表07
A2: 一般公共预算支出表
A3: 单位：507001_岳阳县残疾人联合会 | J3: 金额单位：万元
A4: 功能科目 | D4: 科目编码 | E4: 科目名称 | F4: 合计 | G4: 基本支出 | K4: 项目支出
G5: 小计 | H5: 人员经费 | J5: 公用经费
A6: 类 | B6: 款 | C6: 项 | H6: 工资福利支出 | I6: 对个人和家庭的补助
E7: 合计 | F7: 758.41 | G7: 381.54 | H7: 282.34 | I7: 5.90 | J7: 93.30 | K7: 376.87
D8: 507 | E8: 岳阳县残疾人联合会 | F8: 758.41 | G8: 381.54 | H8: 282.34 | I8: 5.90 | J8: 93.30 | K8: 376.87
D9: 507001 | E9: 岳阳县残疾人联合会 | F9: =F10+F21+F25 -> 758.41 | G9: 381.54 | H9: 282.34 | I9: 5.90 | J9: 93.30 | K9: 376.87
A10: 208 | D10: 208 | E10: 社会保障和就业支出 | F10: =F11+F14+F19 -> 732.97 | G10: 356.10 | H10: 256.90 | I10: 5.90 | J10: 93.30 | K10: 376.87
A11: 208 | B11: 05 | D11: 20805 | E11: 行政事业单位养老支出 | F11: 21.40 | G11: 21.40 | H11: 21.40
A12: 208 | B12: 05 | C12: 05 | D12: 2080505 | E12: 机关事业单位基本养老保险缴费支出 | F12: 18.93 | G12: 18.93 | H12: 18.93
A13: 208 | B13: 05 | C13: 06 | D13: 2080506 | E13: 机关事业单位职业年金缴费支出 | F13: 2.48 | G13: 2.48 | H13: 2.48
A14: 208 | B14: 11 | D14: 20811 | E14: 残疾人事业 | F14: =SUM(F15:F18) -> 710.39 | G14: 333.52 | H14: 234.32 | I14: 5.90 | J14: 93.30 | K14: 376.87
A15: 208 | B15: 11 | C15: 01 | D15: 2081101 | E15: 行政运行 | F15: 169.56 | G15: 166.86 | H15: 144.66 | J15: 22.20 | K15: 2.70
A16: 208 | B16: 11 | C16: 04 | D16: 2081104 | E16: 残疾人康复 | F16: 274.17 | G16: 0.00 | H16: 0.00 | I16: 0.00 | J16: 0.00 | K16: 274.17
A17: 208 | B17: 11 | C17: 05 | D17: 2081105 | E17: 残疾人就业 | F17: 151.66 | G17: 51.66 | H17: 51.66 | K17: 100.00
A18: 208 | B18: 11 | C18: 99 | D18: 2081199 | E18: 其他残疾人事业支出 | F18: 115.00 | G18: 115.00 | H18: 38.00 | I18: 5.90 | J18: 71.10
A19: 208 | B19: 99 | D19: 20899 | E19: 其他社会保障和就业支出 | F19: 1.18 | G19: 1.18 | H19: 1.18
A20: 208 | B20: 99 | C20: 99 | D20: 2089999 | E20: 其他社会保障和就业支出 | F20: 1.18 | G20: 1.18 | H20: 1.18
A21: 210 | D21: 210 | E21: 卫生健康支出 | F21: 11.24 | G21: 11.24 | H21: 11.24
A22: 210 | B22: 11 | D22: 21011 | E22: 行政事业单位医疗 | F22: 11.24 | G22: 11.24 | H22: 11.24
A23: 210 | B23: 11 | C23: 01 | D23: 2101101 | E23: 行政单位医疗 | F23: 10.06 | G23: 10.06 | H23: 10.06
A24: 210 | B24: 11 | C24: 03 | D24: 2101103 | E24: 公务员医疗补助 | F24: 1.18 | G24: 1.18 | H24: 1.18
A25: 221 | D25: 221 | E25: 住房保障支出 | F25: 14.20 | G25: 14.20 | H25: 14.20
A26: 221 | B26: 02 | D26: 22102 | E26: 住房改革支出 | F26: 14.20 | G26: 14.20 | H26: 14.20
A27: 221 | B27: 02 | C27: 01 | D27: 2210201 | E27: 住房公积金 | F27: 14.20 | G27: 14.20 | H27: 14.20
A28: 注：如本表格为空，则表示本年度未安排此项目。

Sheet 8一般公共预算基本支出表
E1: 部门公开表08
A2: 一般公共预算基本支出表
A3: 单位：单位：507001_岳阳县残疾人联合会 | E3: 单位：万元
A4: 部门预算支出经济分类科目 | C4: 本年一般公共预算基本支出
A5: 科目代码 | B5: 科目名称 | C5: 合计 | D5: 人员经费 | E5: 公用经费
A6: 301 | B6: 工资福利支出 | C6: =SUM(C7:C17) -> 282.34 | D6: =SUM(D7:D17) -> 282.34
A7: 30108 | B7: 机关事业单位基本养老保险缴费 | C7: 23.28 | D7: 23.28
A8: 30109 | B8: 职业年金缴费 | C8: 17.46 | D8: 17.46
A9: 30103 | B9: 奖金 | C9: 38.82 | D9: 38.82
A10: 30102 | B10: 津贴补贴 | C10: 27.37 | D10: 27.37
A11: 30101 | B11: 基本工资 | C11: 96.90 | D11: 96.90
A12: 30107 | B12: 绩效工资 | C12: 24.33 | D12: 24.33
A13: 30112 | B13: 其他社会保障缴费 | C13: 1.46 | D13: 1.46
A14: 30110 | B14: 职工基本医疗保险缴费 | C14: 12.37 | D14: 12.37
A15: 30111 | B15: 公务员医疗补助缴费 | C15: 1.46 | D15: 1.46
A16: 30113 | B16: 住房公积金 | C16: 23.73 | D16: 23.73
A17: 30199 | B17: 其他工资福利支出 | C17: 15.17 | D17: 15.17
A18: 302 | B18: 商品和服务支出 | C18: =SUM(C19:C33) -> 93.30 | E18: =SUM(E19:E33) -> 93.30
A19: 30239 | B19: 其他交通费用 | C19: 15.48 | E19: 15.48
A20: 30231 | B20: 公务用车运行维护费 | C20: 4.80 | E20: 4.80
A21: 30217 | B21: 公务接待费 | C21: 1.90 | E21: 1.90
A22: 30201 | B22: 办公费 | C22: 9.63 | E22: 9.63
A23: 30202 | B23: 印刷费 | C23: 6.69 | E23: 6.69
A24: 30203 | B24: 咨询费 | C24: 1.50 | E24: 1.50
A25: 30205 | B25: 水费 | C25: 0.88 | E25: 0.88
A26: 30211 | B26: 差旅费 | C26: 5.20 | E26: 5.20
A27: 30207 | B27: 邮电费 | C27: 6.11 | E27: 6.11
A28: 30216 | B28: 培训费 | C28: 0.50 | E28: 0.50
A29: 30226 | B29: 劳务费 | C29: 0.30 | E29: 0.30
A30: 30213 | B30: 维修费 | C30: 1.76 | E30: 1.76
A31: 30228 | B31: 工会经费 | C31: 12.00 | E31: 12.00
A32: 30299 | B32: 其他商品和服务支出 | C32: 24.55 | E32: 24.55
A33: 30206 | B33: 电费 | C33: 2.00 | E33: 2.00
A34: 合计 | C34: =C6+C18 -> 375.64 | D34: =D6 -> 282.34 | E34: =E18 -> 93.30
A35: 注：如本表格为空，则表示本年度未安排此项目。

Sheet 9工资福利(政府预算)
M1: 部门公开表09
A2: 一般公共预算基本支出表--人员经费(工资福利支出)(按政府预算经济分类)
A3: 单位：507001_岳阳县残疾人联合会 | M3: 金额单位：万元
A4: 功能科目 | D4: 单位代码 | E4: 单位名称（功能科目） | F4: 总 计 | G4: 机关工资福利支出 | L4: 对事业单位经常性补助
A5: 类 | B5: 款 | C5: 项 | G5: 合计 | H5: 工资奖金津补贴 | I5: 社会保障缴费 | J5: 住房公积金 | K5: 其他工资福利支出 | L5: 合计 | M5: 工资福利支出 | N5: 其他对事业单位补助
E6: 合计 | F6: 282.34 | G6: 282.34 | H6: 187.42 | I6: 56.03 | J6: 23.73 | K6: 15.17
D7: 507 | E7: 岳阳县残疾人联合会 | F7: 282.34 | G7: 282.34 | H7: 187.42 | I7: 56.03 | J7: 23.73 | K7: 15.17
D8: 507001 | E8: 岳阳县残疾人联合会 | F8: =SUM(F9:F17) -> 282.34 | G8: 282.34 | H8: 187.42 | I8: 56.03 | J8: 23.73 | K8: 15.17
A9: 208 | B9: 05 | C9: 05 | D9: 507001 | E9: 机关事业单位基本养老保险缴费支出 | F9: 18.93 | G9: =SUM(H9:K9) -> 18.93 | I9: 18.93
A10: 208 | B10: 05 | C10: 06 | D10: 507001 | E10: 机关事业单位职业年金缴费支出 | F10: 2.48 | G10: =SUM(H10:K10) -> 2.48 | I10: 2.48
A11: 208 | B11: 11 | C11: 01 | D11: 507001 | E11: 行政运行 | F11: 144.66 | G11: =SUM(H11:K11) -> 144.66 | H11: 144.66
A12: 208 | B12: 11 | C12: 05 | D12: 507001 | E12: 残疾人就业 | F12: 51.66 | G12: =SUM(H12:K12) -> 51.66 | H12: 42.76 | I12: 8.90
A13: 208 | B13: 11 | C13: 99 | D13: 507001 | E13: 其他残疾人事业支出 | F13: 38.00 | G13: =SUM(H13:K13) -> 38.00 | I13: 13.30 | J13: 9.53 | K13: 15.17
A14: 208 | B14: 99 | C14: 99 | D14: 507001 | E14: 其他社会保障和就业支出 | F14: 1.18 | G14: =SUM(H14:K14) -> 1.18 | I14: 1.18
A15: 210 | B15: 11 | C15: 01 | D15: 507001 | E15: 行政单位医疗 | F15: 10.06 | G15: =SUM(H15:K15) -> 10.06 | I15: 10.06
A16: 210 | B16: 11 | C16: 03 | D16: 507001 | E16: 公务员医疗补助 | F16: 1.18 | G16: =SUM(H16:K16) -> 1.18 | I16: 1.18
A17: 221 | B17: 02 | C17: 01 | D17: 507001 | E17: 住房公积金 | F17: 14.20 | G17: =SUM(H17:K17) -> 14.20 | J17: 14.20
A18: 注：如本表格为空，则表示本年度未安排此项目。

Sheet 10工资福利
U1: 部门公开表10
A2: 一般公共预算基本支出表--人员经费(工资福利支出)(按部门预算经济分类)
A3: 单位：507001_岳阳县残疾人联合会 | U3: 金额单位：万元
A4: 功能科目 | D4: 单位代码 | E4: 单位名称（功能科目） | F4: 总 计 | G4: 工资津补贴 | L4: 社会保障缴费 | R4: 住房公积金 | S4: 其他工资福利支出
A5: 类 | B5: 款 | C5: 项 | G5: 合计 | H5: 基本工资 | I5: 津贴补贴 | J5: 奖金 | K5: 绩效工资 | L5: 合计 | M5: 机关事业单位基本养老保险缴费 | N5: 职业年金缴费 | O5: 职工基本医疗保险缴费 | P5: 公务员医疗补助缴费 | Q5: 其他社会保障缴费 | S5: 合计 | T5: 伙食补助费 | U5: 医疗费 | V5: 其他工资福利支出
E6: 合计 | F6: 282.34 | G6: 187.42 | H6: 96.90 | I6: 27.37 | J6: 38.82 | K6: 24.33 | L6: 56.03 | M6: 23.28 | N6: 17.46 | O6: 12.37 | P6: 1.46 | Q6: 1.46 | R6: 23.73 | S6: 15.17 | V6: 15.17
D7: 507 | E7: 岳阳县残疾人联合会 | F7: 282.34 | G7: 187.42 | H7: 96.90 | I7: 27.37 | J7: 38.82 | K7: 24.33 | L7: 56.03 | M7: 23.28 | N7: 17.46 | O7: 12.37 | P7: 1.46 | Q7: 1.46 | R7: 23.73 | S7: 15.17 | V7: 15.17
D8: 507001 | E8: 岳阳县残疾人联合会 | F8: =SUM(F9:F17) -> 282.34 | G8: =SUM(H8:K8) -> 187.42 | H8: =SUM(H9:H17) -> 96.90 | I8: =SUM(I9:I17) -> 27.37 | J8: =SUM(J9:J17) -> 38.82 | K8: =SUM(K9:K17) -> 24.33 | L8: =SUM(M8:Q8) -> 56.03 | M8: =SUM(M9:M17) -> 23.28 | N8: =SUM(N9:N17) -> 17.46 | O8: =SUM(O9:O17) -> 12.37 | P8: =SUM(P9:P17) -> 1.46 | Q8: =SUM(Q9:Q17) -> 1.46 | R8: =SUM(R9:R17) -> 23.73 | S8: 15.17 | V8: =SUM(V9:V17) -> 15.17
A9: 208 | B9: 05 | C9: 05 | D9: 507001 | E9: 机关事业单位基本养老保险缴费支出 | F9: =G9+L9+R9+S9 -> 18.93 | G9: =SUM(H9:K9) -> 0.00 | L9: =SUM(M9:Q9) -> 18.93 | M9: 18.93
A10: 208 | B10: 05 | C10: 06 | D10: 507001 | E10: 机关事业单位职业年金缴费支出 | F10: =G10+L10+R10+S10 -> 2.48 | G10: 0.00 | L10: 2.48 | N10: 2.48
A11: 208 | B11: 11 | C11: 01 | D11: 507001 | E11: 行政运行 | F11: 144.66 | G11: 144.66 | H11: 78.55 | I11: 25.18 | J11: 26.35 | K11: 14.57 | L11: 0.00
A12: 208 | B12: 11 | C12: 05 | D12: 507001 | E12: 残疾人就业 | F12: 51.66 | G12: 42.76 | H12: 18.34 | I12: 2.19 | J12: 12.47 | K12: 9.76 | L12: 8.90 | N12: 8.90
A13: 208 | B13: 11 | C13: 99 | D13: 507001 | E13: 其他残疾人事业支出 | F13: 38.00 | G13: 0.00 | L13: 13.30 | M13: 4.35 | N13: 6.08 | O13: 2.31 | P13: 0.28 | Q13: 0.28 | R13: 9.53 | S13: 15.17 | V13: 15.17
A14: 208 | B14: 99 | C14: 99 | D14: 507001 | E14: 其他社会保障和就业支出 | F14: 1.18 | G14: 0.00 | L14: 1.18 | Q14: 1.18
A15: 210 | B15: 11 | C15: 01 | D15: 507001 | E15: 行政单位医疗 | F15: 10.06 | G15: 0.00 | L15: 10.06 | O15: 10.06
A16: 210 | B16: 11 | C16: 03 | D16: 507001 | E16: 公务员医疗补助 | F16: 1.18 | G16: 0.00 | L16: 1.18 | P16: 1.18
A17: 221 | B17: 02 | C17: 01 | D17: 507001 | E17: 住房公积金 | F17: 14.20 | G17: 0.00 | L17: 0.00 | R17: 14.20
A18: 注：如本表格为空，则表示本年度未安排此项目。

Sheet 11个人家庭(政府预算)
K1: 部门公开表11
A2: 一般公共预算基本支出表--人员经费(对个人和家庭的补助)(按政府预算经济分类)
A3: 单位：507001_岳阳县残疾人联合会 | J3: 金额单位：万元
A4: 功能科目 | D4: 单位代码 | E4: 单位名称（功能科目） | F4: 总计 | G4: 社会福利和救济 | H4: 助学金 | I4: 个人农业生产补贴 | J4: 离退休费 | K4: 其他对个人和家庭的补助
A5: 类 | B5: 款 | C5: 项
E6: 合计 | F6: 5.90 | K6: 5.90
A7: 208 | B7: 11 | C7: 99 | D7: 507001 | E7: 其他残疾人事业支出 | F7: 5.90 | K7: 5.90
A8: 注：如本表格为空，则表示本年度未安排此项目。

Sheet 12个人家庭
Q1: 部门公开表12
A2: 一般公共预算基本支出表--人员经费(对个人和家庭的补助)（按部门预算经济分类）
A3: 单位：507001_岳阳县残疾人联合会 | Q3: 金额单位：万元
A4: 功能科目 | D4: 单位代码 | E4: 单位名称（功能科目） | F4: 总计 | G4: 离休费 | H4: 退休费 | I4: 退职（役）费 | J4: 抚恤金 | K4: 生活补助 | L4: 救济费 | M4: 医疗费补助 | N4: 助学金 | O4: 奖励金 | P4: 代缴社会保险费 | Q4: 个人农业生产补贴 | R4: 其他对个人和家庭的补助
A5: 类 | B5: 款 | C5: 项
E6: 合计 | F6: 5.90 | H6: 5.90
A7: 208 | B7: 11 | C7: 99 | D7: 507001 | E7: 其他残疾人事业支出 | F7: =SUM(G7:K7) -> 5.90 | H7: 5.90
A8: 注：如本表格为空，则表示本年度未安排此项目。

Sheet 13商品服务(政府预算)
S1: 部门公开表13
A2: 一般公共预算基本支出表--公用经费(商品和服务支出)（按政府预算经济分类）
A3: 单位：507001_岳阳县残疾人联合会 | S3: 金额单位：万元
A4: 功能科目 | D4: 单位代码 | E4: 单位名称（功能科目） | F4: 总计 | G4: 机关商品和服务支出 | R4: 对事业单位经常性补助
A5: 类 | B5: 款 | C5: 项 | G5: 合计 | H5: 办公经费 | I5: 会议费 | J5: 培训费 | K5: 专用材料购置费 | L5: 委托业务费 | M5: 公务接待费 | N5: 因公出国（境）费用 | O5: 公务用车运行维护费 | P5: 维修(护)费 | Q5: 其他商品和服务支出 | R5: 合计 | S5: 商品和服务支出 | T5: 其他对事业单位补助
E6: 合计 | F6: 93.30 | G6: 93.30 | H6: 59.79 | J6: 0.50 | M6: 1.90 | O6: 4.80 | P6: 1.76 | Q6: 24.55
D7: 507 | E7: 岳阳县残疾人联合会 | F7: 93.30 | G7: 93.30 | H7: 59.79 | J7: 0.50 | M7: 1.90 | O7: 4.80 | P7: 1.76 | Q7: 24.55
D8: 507001 | E8: 岳阳县残疾人联合会 | F8: =SUM(F9:F10) -> 93.30 | G8: =SUM(G9:G10) -> 93.30 | H8: =SUM(H9:H10) -> 59.79 | J8: 0.50 | M8: 1.90 | O8: =SUM(O9:O10) -> 4.80 | P8: =SUM(P9:P10) -> 1.76 | Q8: =SUM(Q9:Q10) -> 24.55
A9: 208 | B9: 11 | C9: 01 | D9: 507001 | E9: 行政运行 | F9: 22.20 | G9: =SUM(H9:Q9) -> 22.20 | H9: 17.20 | J9: 0.10 | M9: 1.90 | O9: 3.00
A10: 208 | B10: 11 | C10: 99 | D10: 507001 | E10: 其他残疾人事业支出 | F10: 71.10 | G10: =SUM(H10:Q10) -> 71.10 | H10: 42.59 | J10: 0.40 | O10: 1.80 | P10: 1.76 | Q10: 24.55
A11: 注：如本表格为空，则表示本年度未安排此项目。

Sheet 14商品服务
AF1: 部门公开表14
A2: 一般公共预算基本支出表--公用经费(商品和服务支出)(按部门预算经济分类)
A3: 单位：507001_岳阳县残疾人联合会 | AF3: 金额单位：万元
A4: 功能科目 | D4: 单位代码 | E4: 单位名称（功能科目） | F4: 总 计 | G4: 办公费 | H4: 印刷费 | I4: 咨询费 | J4: 手续费 | K4: 水费 | L4: 电费 | M4: 邮电费 | N4: 取暖费 | O4: 物业管理费 | P4: 差旅费 | Q4: 因公出国（境）费用 | R4: 维修(护)费 | S4: 租赁费 | T4: 会议费 | U4: 培训费 | V4: 公务接待费 | W4: 专用材料费 | X4: 被装购置费 | Y4: 专用燃料费 | Z4: 劳务费 | AA4: 委托业务费 | AB4: 工会经费 | AC4: 福利费 | AD4: 公务用车运行维护费 | AE4: 其他交通费用 | AF4: 税金及附加费用 | AG4: 其他商品和服务支出
A5: 类 | B5: 款 | C5: 项
E6: 合计 | F6: 93.30 | G6: 9.63 | H6: 6.69 | I6: 1.50 | K6: 0.88 | L6: 2.00 | M6: 6.11 | P6: 5.20 | Q6: 0.00 | R6: 1.76 | U6: 0.50 | V6: 1.90 | Z6: 0.30 | AB6: 12.00 | AD6: 4.80 | AE6: 15.48 | AG6: 24.55
D7: 507 | E7: 岳阳县残疾人联合会 | F7: 93.30 | G7: 9.63 | H7: 6.69 | I7: 1.50 | K7: 0.88 | L7: 2.00 | M7: 6.11 | P7: 5.20 | Q7: 0.00 | R7: 1.76 | U7: 0.50 | V7: 1.90 | Z7: 0.30 | AB7: 12.00 | AD7: 4.80 | AE7: 15.48 | AG7: 24.55
D8: 507001 | E8: 岳阳县残疾人联合会 | F8: =SUM(G8:AG8) -> 93.30 | G8: =SUM(G9:G10) -> 9.63 | H8: =SUM(H9:H10) -> 6.69 | I8: 1.50 | K8: 0.88 | L8: 2.00 | M8: 6.11 | P8: 5.20 | Q8: 0.00 | R8: 1.76 | U8: 0.50 | V8: 1.90 | Z8: 0.30 | AB8: 12.00 | AD8: 4.80 | AE8: 15.48 | AG8: 24.55
A9: 208 | B9: 11 | C9: 01 | D9: 507001 | E9: 行政运行 | F9: =SUM(G9:AG9) -> 22.20 | G9: 1.44 | K9: 0.23 | L9: 0.96 | P9: 1.98 | U9: 0.10 | V9: 1.90 | AD9: 3.00 | AE9: 12.59
A10: 208 | B10: 11 | C10: 09 | D10: 507001 | E10: 其他残疾人事业支出 | F10: =SUM(G10:AG10) -> 71.10 | G10: 8.19 | H10: 6.69 | I10: 1.50 | K10: 0.65 | L10: 1.04 | M10: 6.11 | P10: 3.22 | R10: 1.76 | U10: 0.40 | Z10: 0.30 | AB10: 12.00 | AD10: 1.80 | AE10: 2.89 | AG10: 24.55
A11: 注：如本表格为空，则表示本年度未安排此项目。

Sheet 15三公
G1: 部门公开表15
A2: 一般公共预算“三公”经费支出表
A3: 单位：507001_岳阳县残疾人联合会 | H3: 金额单位：万元
A4: 单位编码 | B4: 单位名称 | C4: “三公”经费合计 | D4: 因公出国（境）费 | E4: 公务用车购置及运行费 | H4: 公务接待费
E5: 小计 | F5: 公务用车购置费 | G5: 公务用车运行费
B6: 合计 | C6: 6.70 | E6: 6.70 | G6: 4.80 | H6: 1.90
A7: 507 | B7: 岳阳县残疾人联合会 | C7: 6.70 | E7: 6.70 | G7: 4.80 | H7: 1.90
A8: 507001 | B8: 岳阳县残疾人联合会 | C8: 6.70 | E8: 6.70 | G8: 4.80 | H8: 1.90
A9: 注：如本表格为空，则表示本年度未安排此项目。

Sheet 16政府性基金
G1: 部门公开表16
A2: 政府性基金预算支出表
A3: 单位：507001_岳阳县残疾人联合会 | H3: 金额单位：万元
A4: 科目编码 | B4: 科目名称 | C4: 合计 | D4: 本年政府性基金预算支出 | H4: 项目支出
D5: 小计 | E5: 人员经费 | G5: 公用经费
E6: 工资福利支出 | F6: 对个人和家庭的补助
B7: 合计 | C7: 293.03 | H7: 293.03
A8: 2296006 | B8: 用于残疾人事业的彩票公益金支出 | C8: 293.03 | H8: 293.03
A9: 注：如本表格为空，则表示本年度未安排此项目。

Sheet 17政府性基金(政府预算)
S1: 部门公开表17
A2: 政府性基金预算支出分类汇总表（按政府预算经济分类）
A3: 单位：507001_岳阳县残疾人联合会 | S3: 金额单位：万元
A4: 功能科目 | D4: 单位代码 | E4: 单位名称（功能科目） | F4: 总 计 | G4: 机关工资福利支出 | H4: 机关商品和服务支出 | I4: 机关资本性支出 | J4: 机关资本性支出(基本建设) | K4: 对事业单位经常性补助 | L4: 对事业单位资本性补助 | M4: 对企业补助 | N4: 对企业资本性支出 | O4: 对个人和家庭的补助 | P4: 对社会保障基金补助 | Q4: 债务利息及费用支出 | R4: 债务还本支出 | S4: 转移性支出 | T4: 其他支出
A5: 类 | B5: 款 | C5: 项
E6: 合计 | F6: 293.03 | O6: 293.03
A7: 229 | B7: 60 | C7: 06 | D7: 507001 | E7: 用于残疾人事业的彩票公益金支出 | F7: 293.03 | O7: 293.03
A8: 注：如本表格为空，则表示本年度未安排此项目。

Sheet 18政府性基金（部门预算）
S1: 部门公开表18
A2: 政府性基金预算支出分类汇总表（按部门预算经济分类）
A3: 单位：507001_岳阳县残疾人联合会 | S3: 金额单位：万元
A4: 功能科目 | D4: 单位代码 | E4: 单位名称（功能科目） | F4: 总 计 | G4: 基本支出 | K4: 项目支出
A5: 类 | B5: 款 | C5: 项 | G5: 合计 | H5: 工资福利支出 | I5: 一般商品和服务支出 | J5: 对个人和家庭的补助 | K5: 合计 | L5: 按项目管理的商品和服务支出 | M5: 按项目管理的对个人和家庭的补助 | N5: 债务利息及费用支出 | O5: 资本性支出（基本建设） | P5: 资本性支出 | Q5: 对企业补助（基本建设） | R5: 对企业补助 | S5: 对社会保障基金补助 | T5: 其他支出
E6: 合计 | F6: 293.03 | K6: 293.03 | M6: 293.03
A7: 229 | B7: 60 | C7: 06 | D7: 507001 | E7: 用于残疾人事业的彩票公益金支出 | F7: 293.03 | K7: 293.03 | M7: 293.03
A8: 注：如本表格为空，则表示本年度未安排此项目。

Sheet 19国有资本经营预算
H1: 部门公开表19
A2: 国有资本经营预算支出表
A3: 单位：507001_岳阳县残疾人联合会 | H3: 金额单位：万元
A4: 科目编码 | B4: 科目名称 | C4: 合计 | D4: 本年国有资本经营预算支出 | H4: 项目支出
D5: 小计 | E5: 人员经费 | G5: 公用经费
E6: 工资福利支出 | F6: 对个人和家庭的补助
B7: 合计 | C7: 0.00
B8: 无
A13: 注：如本表格为空，则表示本年度未安排此项目。

Sheet 20财政专户管理资金
H1: 部门公开表20
A2: 财政专户管理资金预算支出表
A3: 单位：507001_岳阳县残疾人联合会 | H3: 金额单位：万元
A4: 科目编码 | B4: 科目名称 | C4: 合计 | D4: 本年财政专户管理资金预算支出 | H4: 项目支出
D5: 小计 | E5: 人员经费 | G5: 公用经费
E6: 工资福利支出 | F6: 对个人和家庭的补助
B7: 合计 | C7: 0.00
B8: 无
A13: 注：如本表格为空，则表示本年度未安排此项目。

Sheet 21专项清单
M1: 部门公开表21
A2: 专项资金预算汇总表
A3: 单位：507001_岳阳县残疾人联合会 | M3: 金额单位：万元
A4: 单位代码 | B4: 单位名称（专项名称） | C4: 预算额度 | M4: 预算编制方式
C5: 总计 | D5: 一般公共预算 | J5: 政府性基金 | K5: 国有资本经营预算 | L5: 社会保险基金预算资金 | M5: 编入部门预算金额 | N5: 财政代编金额
D6: 一般公共预算小计 | E6: 经费拨款 | F6: 纳入一般公共预算管理的非税收入 | G6: 一般债券 | H6: 外国政府和国际组织贷款 | I6: 外国政府和国际组织赠款
B7: 合计 | C7: 669.90 | D7: 376.87 | E7: 376.87 | J7: 293.03 | M7: 669.90
A8: 507 | B8: 岳阳县残疾人联合会 | C8: =SUM(C9:C12) -> 699.90 | D8: =SUM(D9:D12) -> 406.87 | E8: =SUM(E9:E12) -> 406.87 | J8: =SUM(J9:J12) -> 293.03 | M8: 669.90
A9: 507001 | B9: 会议费 | C9: =D9+J9 -> 2.70 | D9: 2.70 | E9: 2.70 | M9: 2.70
A10: 507001 | B10: 残疾儿童康复救助配套项目 | C10: =D10+J10 -> 360.00 | D10: 150.00 | E10: 150.00 | J10: 210.00 | M10: 360.00
A11: 507001 | B11: 残疾人劳动就业服务 | C11: =D11+J11 -> 204.17 | D11: 204.17 | E11: 204.17 | M11: 204.17
A12: 507001 | B12: 残疾人专项 | C12: =D12+J12 -> 133.03 | D12: 50.00 | E12: 50.00 | J12: 83.03 | M12: 133.03
A13: 注：如本表格为空，则表示本年度未安排此项目。

Sheet 22项目支出绩效目标表
M1: 部门公开表22
C2: 项目支出绩效目标表
A3: 单位：507001_岳阳县残疾人联合会 | L3: 金额单位：万元
A4: 单位代码 | B4: 单位（专项）名称 | C4: 资金总额 | D4: 实施期绩效目标 | E4: 绩效指标
E5: 一级指标 | F5: 二级指标 | G5: 三级指标 | H5: 指标值 | I5: 指标值内容 | J5: 评（扣分标准） | K5: 度量单位 | L5: 指标值类型 | M5: 备注
A6: 507001 | B6: 岳阳县残疾人联合会 | C6: 202.70
A7: 507001 | B7: 残疾儿童康复救助配套项目 | C7: 360.00 | D7: 残疾儿童康复救助配套项目 | E7: 成本指标 | F7: 经济成本指标 | G7: 残疾儿童康复救助项目 | H7: 360万元 | I7: 残疾儿童康复救助项目预计成本360万元 | J7: 未超成本得20分，成本每超支1%扣1分。 | K7: 万元 | L7: ≤
F8: 社会成本指标 | G8: 无 | H8: 无 | I8: 无 | J8: 无 | K8: 无 | L8: 定性
F9: 生态环境成本指标 | G9: 无 | H9: 无 | I9: 无 | J9: 无 | K9: 无 | L9: 定性
E10: 产出指标 | F10: 数量指标 | G10: 完成残疾儿童康复救助人数240人 | H10: 240人 | I10: 儿童康复救助240人 | J10: 完成240人得20分，每少于5人扣1分。 | K10: 人 | L10: ≥
F11: 质量指标 | G11: 儿童康复效果 | H11: 80% | I11: 康复效果达80%及以上 | J11: 根据对残疾儿童家长调查，康复效果80%得20分，每低1个百分点扣1分。 | K11: 百分比 | L11: ≥
F12: 时效指标 | G12: 项目实施期 | H12: 2024年1月—12月 | I12: 项目实施期为2024年1月—12月 | J12: 2024年度内完成得10分，每延期10天扣1分。 | K12: 年 | L12: ≤
E13: 效益指标 | F13: 经济效益指标 | G13: 无 | H13: 无 | I13: 无 | J13: 无 | K13: 无 | L13: 定性
F14: 社会效益指标 | G14: 残疾人群众稳定 | H14: 促进 | I14: 促进残疾人群众稳定 | J14: 根据调查结果，残疾人群体稳定得10分，出现群访集访情况得0分。 | K14: 无 | L14: 定性
F15: 生态效益指标 | G15: 无 | H15: 无 | I15: 无 | J15: 无 | K15: 无 | L15: 定性
F16: 可持续影响指标 | G16: 残疾儿童康复救助机制持续时间 | H16: 长期 | I16: 残疾儿童康复救助机制长期运行 | J16: 机制有效且长期运行得10分，短期运行得5分，不运行得0分。 | K16: 年 | L16: 定性
E17: 满意度指标 | F17: 服务对象满意度指标 | G17: 服务对象满意度 | H17: 96% | I17: 服务对象满意度96% | J17: 服务对象满意度96%以上得10分，每低1个百分点扣1分。 | K17: 百分比 | L17: ≥
A18: 507001 | B18: 残疾人劳动就业服务 | C18: 204.17 | D18: 残疾人劳动就业服务 | E18: 成本指标 | F18: 经济成本指标 | G18: 残疾人就业培训项目 | H18: 204.17万元 | I18: 残疾人就业培训项目预计经济成本204.17万元 | J18: 未超成本得10分，成本每超支1%扣1分。 | K18: 百分比 | L18: ≤
F19: 社会成本指标 | G19: 无 | H19: 无 | I19: 无 | J19: 无 | K19: 无 | L19: 定性
F20: 生态环境成本指标 | G20: 无 | H20: 无 | I20: 无 | J20: 无 | K20: 无 | L20: 定性
E21: 产出指标 | F21: 数量指标 | G21: 残疾人劳动就业服务200人次 | H21: 200人次 | I21: 残疾人劳动就业服务200人 | J21: 服务200人次得20分，每少于5人次扣1分。 | K21: 人次 | L21: ≥
F22: 质量指标 | G22: 服务合格率 | H22: 100% | I22: 服务合格率100% | J22: 合格服务率100%得20分，每低10个百分点扣1分。 | K22: 百分比 | L22: ≥
F23: 时效指标 | G23: 资金拨付及时性 | H23: 2024年1月—12月 | I23: 项目实施期为2024年1月—12月 | J23: 2024年度完成得10分，延期10天扣1分。 | K23: 年 | L23: ≤
E24: 效益指标 | F24: 经济效益指标 | G24: 提高残疾人家庭经济收入 | H24: 提高 | I24: 残疾人家庭经济收入不断提高 | J24: 根据调查结果衡量此指标得分，效果好得10分，一般得5分，较差得0分。 | K24: 无 | L24: 定性
F25: 社会效益指标 | G25: 残疾人群众社会稳定 | H25: 促进 | I25: 促进残疾人群众社会稳定 | J25: 根据项目实施情况及调查数据衡量此指标效果，良好得10分，一般得5分，较差得0分。 | K25: 无 | L25: 定性
F26: 生态效益指标 | G26: 无 | H26: 无 | I26: 无 | J26: 无 | K26: 无 | L26: 定性
F27: 可持续影响指标 | G27: 残疾人劳动就业服务项目机制持续时间 | H27: 长期 | I27: 残疾人劳动服务项目长期运行 | J27: 机制有效且长期运行得10分，短期得5分，未运行得0分。 | K27: 无 | L27: 定性
E28: 满意度指标 | F28: 服务对象满意度指标 | G28: 服务对象满意度 | H28: 96% | I28: 服务对象满意度96%及以上 | J28: 服务对象满意度96%以上得10分，每低1个百分比扣1分。 | K28: 百分比 | L28: ≥
A29: 507001 | B29: 残疾人专项 | C29: 133.03 | D29: 残疾人专项 | E29: 成本指标 | F29: 经济成本指标 | G29: 残疾人就业创业项目 | H29: 133.03万元 | I29: 残疾人就业创业项目预计成本133.03万元 | J29: 未超成本得10分，每超过1%扣1分。 | K29: 万元 | L29: ≤
F30: 社会成本指标 | G30: 无 | H30: 无 | I30: 无 | J30: 无 | K30: 无 | L30: 定性
F31: 生态环境成本指标 | G31: 无 | H31: 无 | I31: 无 | J31: 无 | K31: 无 | L31: 定性
E32: 产出指标 | F32: 数量指标 | G32: 残疾人就业创业100人 | H32: 100人 | I32: 完成残疾人就业创业扶持100人 | J32: 完成100人得20分，每少于1人扣1分。 | K32: 人 | L32: ≥
F33: 质量指标 | G33: 残疾人就业创业率 | H33: 90% | I33: 残疾人就业创业率100% | J33: 就业创业率90%得20分，每低于1个百分率扣1分。 | K33: 百分比 | L33: ≥
F34: 时效指标 | G34: 项目实施期 | H34: 2024年1月—12月 | I34: 项目实施期2024年1—12月 | J34: 项目在2024年度内完成得10分，每延期10天扣1分。 | K34: 年 | L34: ≤
E35: 效益指标 | F35: 经济效益指标 | G35: 残疾人家庭增产增收 | H35: 促进 | I35: 促进残疾人家庭增产增收 | J35: 根据调查结果，残疾人家庭增产增收效果明显得10分，一般得5分，较差得0分。 | K35: 无 | L35: 定性
F36: 社会效益指标 | G36: 残疾人群体稳定 | H36: 促进 | I36: 促进残疾人群体稳定 | J36: 根据调查结果，残疾人群体稳定得10分，不稳定出现群访集访等情况得0分。 | K36: 无 | L36: 定性
F37: 生态效益指标 | G37: 无 | H37: 无 | I37: 无 | J37: 无 | K37: 无 | L37: 定性
F38: 可持续影响指标 | G38: 就业创业帮扶机制 | H38: 长期 | I38: 就业创业帮扶机制长期运行 | J38: 机制有效且长期运行得10分，短期得5分，未运行得0分。 | K38: 无 | L38: 定性
E39: 满意度指标 | F39: 服务对象满意度指标 | G39: 服务对象满意度 | H39: 96% | I39: 服务对象满意度96%及以上 | J39: 服务对象满意度96%以上得10分，每低于1个百分点扣1分。 | K39: 百分比 | L39: ≥
A40: 507001 | B40: 会议费 | C40: 2.70 | D40: 残疾人工作会议费开支 | E40: 成本指标 | F40: 经济成本指标 | G40: 残疾人工作会议费 | H40: 2.7万元 | I40: 会议费项目预计经济成本2.7万元 | J40: 未超成本得20分，每超支1%扣1分。 | K40: 万元 | L40: ≤
F41: 社会成本指标 | G41: 无 | H41: 无 | I41: 无 | J41: 无 | K41: 无 | L41: 定性
F42: 生态环境成本指标 | G42: 无 | H42: 无 | I42: 无 | J42: 无 | K42: 无 | L42: 定性
E43: 产出指标 | F43: 数量指标 | G43: 残疾人工作会议次数 | H43: 10次 | I43: 本年度会议次数10次以上 | J43: 年度内会议次数达10次得20分，少于1次扣2分。 | K43: 次 | L43: ≥
F44: 质量指标 | G44: 各项会议任务完成率 | H44: 100 | I44: 会议任务完成率100% | J44: 完成率100%得20分，每低10个百分点扣1分。 | K44: 百分比 | L44: ≥
F45: 时效指标 | G45: 会议完成及时率 | H45: 2024年1月—12月 | I45: 会议及时率100% | J45: 及时率100%得10分，每低于10个百分点扣1分。 | K45: 百分比 | L45: ≥
E46: 效益指标 | F46: 经济效益指标 | G46: 无 | H46: 无 | I46: 无 | J46: 无 | K46: 无 | L46: 定性
F47: 社会效益指标 | G47: 残疾人群体社会稳定 | H47: 促进 | I47: 促进残疾人群体社会稳定 | J47: 根据项目实施情况及问卷调查数据衡量此指标效果，良好得10分，一般得6分，较差得0分。 | K47: 无 | L47: 定性
F48: 生态效益指标 | G48: 无 | H48: 无 | I48: 无 | J48: 无 | K48: 无 | L48: 定性
F49: 可持续影响指标 | G49: 残疾人工作机制持续时间 | H49: 长期 | I49: 残疾人工作机制长期运行 | J49: 机制有效且长期运行得10分，短期运行得5分，未运行不得分。 | K49: 年 | L49: ≥ | M49: 10分
E50: 满意度指标 | F50: 服务对象满意度指标 | G50: 群众满意度 | H50: 96% | I50: 群众满意度96%以上 | J50: 群众满意度96%以上得10分，每低1个百分点扣1分。 | K50: 百分比 | L50: ≥ | M50: 10分
A51: 注：如本表格为空，则表示本年度未安排此项目。

Sheet 23整体支出绩效目标表
S1: 部门公开表23
A2: 整体支出绩效目标表
A3: 单位：507001_岳阳县残疾人联合会
Q4: 金额单位：万元
A5: 单位编码 | B5: 单位名称 | C5: 年度预算申请 | J5: 整体绩效目标 | K5: 部门整体支出年度绩效目标
C6: 资金总额 | D6: 按收入性质分 | H6: 按支出性质分
D7: 一般公共预算 | E7: 政府性基金拨款 | F7: 财政专户管理资金 | G7: 其他资金 | H7: 基本支出 | I7: 项目支出 | K7: 一级指标 | L7: 二级指标 | M7: 三级指标 | N7: 指标值类型 | O7: 指标值 | P7: 计量单位 | Q7: 指标解释 | R7: 评（扣）分标准 | S7: 备注
A8: 507001 | B8: 岳阳县残疾人联合会 | C8: 1,051.44 | D8: 758.41 | E8: 293.03 | H8: 381.54 | I8: 699.90 | J8: 保证人员经费正常发放，保证单位工作顺利开展，保证困难残疾人生活安定稳定，保证残疾人康复项目实施，保证残疾人教育、就业创业、职业技能培训、托养、无障碍改造等项目实施。 | K8: 成本指标 | L8: 经济成本指标 | M8: 控制在预算内 | N8: ≤ | O8: 1051.44 | P8: 万元 | Q8: 预算资金1051.44万元 | R8: 未超成本得5分，每超1%扣1分。 | S8: 5
L9: 社会成本指标 | M9: 无 | N9: 定性 | O9: 无 | P9: 无 | Q9: 无 | R9: 按评分标准计分，每低于1个百分点扣1分。
L10: 生态环境成本指标 | M10: 无 | N10: 定性 | O10: 无 | P10: 无 | Q10: 无 | R10: 按评分标准计分，每低于1个百分点扣1分。
K11: 产出指标 | L11: 数量指标 | M11: 残疾人就业创业 | N11: ≥ | O11: 100 | P11: 人 | Q11: 对残疾人致富带头人、创业模范、创业基地进行项目帮扶 | R11: 完成100人得20分，每低于10人扣1分。 | S11: 20
M12: 残疾儿童康复 | N12: ≥ | O12: 240 | P12: 人 | Q12: 残疾儿童康复医疗救助项目全覆盖 | R12: 完成240人得20分，每低于10人扣1分。 | S12: 20
M13: 残疾人劳动就业服务 | N13: ≥ | O13: 200 | P13: 人 | Q13: 对残疾人劳动就业进行服务 | R13: 完成200人得20分，每少于10人扣1分。 | S13: 20
L14: 质量指标 | M14: 项目验收合格率 | N14: ≥ | O14: 100 | P14: % | Q14: 项目验收合格率100% | R14: 合格率100%得10分，每下降5个百分点扣1分。 | S14: 10
L15: 时效指标 | M15: 预算执行率 | N15: ≥ | O15: 95 | P15: % | Q15: 预算执行率95%以上 | R15: 预算执行率95%以上得5分，每下降%扣1分。 | S15: 5
K16: 效益指标 | L16: 经济效益指标 | M16: 促进残疾人生活条件得到改善，生活水平不断提高 | N16: 定性 | O16: 促进 | P16: 无 | Q16: 受助残疾人经济收入提高度 | R16: 根据调查结果衡量本指标，良好得5分，一般得3分，较差得0分。 | S16: 5
L17: 社会效益指标 | M17: 促进残疾人群体稳定 | N17: 定性 | O17: 促进 | P17: 无 | Q17: 促进残疾人群体社会稳定 | R17: 残疾人社会稳定得5分，有群访集访情况得0分。 | S17: 5
L18: 生态效益指标 | M18: 无 | N18: 定性 | O18: 无 | P18: 无 | Q18: 无 | R18: 按评分标准计分，每低于1个百分点扣1分。
L19: 可持续影响指标 | M19: 服务残疾人机制持续时间 | N19: 定性 | O19: 长期 | P19: 无 | Q19: 服务残疾人机制长期持续运行 | R19: 机制长期且有效运行得5分，短期得3分，未运行得0分。 | S19: 5
K20: 满意度指标 | L20: 服务对象满意度指标 | M20: 残疾人或服务对象满意度 | N20: ≥ | O20: 96 | P20: % | Q20: 受助残疾人满意度 | R20: 服务对象满意度96%及以上得5分，每低于1个百分点扣1分。 | S20: 5
A21: 注：如本表格为空，则表示本年度未安排此项目。
